bitfinex/quotes_ETHUSD_20250626
["timestamp","ask_amount","ask_price","bid_price","bid_amount"]
[1750951979697,9.04313625,2418.3,2413.6,1.47398404]
[1750951979698,45.638765,2415.4,2413.1,3.24015]
[1750951979991,10.55,2415.0,2413.3,15.134]
[1750951980156,10.55,2415.0,2413.5,30.0]
[1750951980157,2.6738765,2415.0,2413.5,30.0]
[1750951980359,0.808,2415.2,2413.5,30.0]
[1750951980592,0.808,2415.2,2413.5,9.236382]
[1750951980593,15.638765,2414.9,2413.5,9.236382]
[1750951980759,4.1419233,2414.4,2413.4,0.73683473]
[1750951980962,4.1419233,2414.4,2412.8,14.47954063]
[1750951980963,0.808,2414.2,2413.1,11.354]
[1750951981182,0.808,2414.2,2412.9,30.0]
[1750951981381,0.808,2414.2,2412.9,3.652576]
[1750951981581,4.14251081,2414.0,2412.8,10.335]
[1750951981773,15.638765,2414.1,2412.9,4.14426887]
[1750951982068,0.808,2414.2,2413.5,4.14320725]
[1750951982480,0.808,2414.2,2413.6,4.14318526]
[1750951982669,0.808,2414.2,2413.0,4.14421881]
[1750951982875,0.808,2414.2,2413.2,4.1437251]
[1750951983082,0.808,2414.2,2413.4,4.14351387]
[1750951983391,0.808,2414.2,2412.8,25.4234801]
[1750951983392,0.808,2414.2,2413.2,4.14387535]
[1750951983592,0.808,2414.7,2413.1,0.55]
[1750951983892,0.808,2414.7,2412.9,14.14426059]
[1750951983893,0.808,2414.7,2414.3,4.14185963]
[1750951984100,0.808,2414.7,2414.3,4.14186827]
[1750951984303,0.21462002,2415.5,2414.5,0.55]
[1750951984596,0.21462002,2415.5,2414.5,30.0]
[1750951984895,0.21462002,2415.5,2414.6,10.342]
[1750951985058,0.7714,2415.4,2414.6,10.342]
[1750951985264,0.2064,2414.9,2414.6,10.342]
[1750951985665,0.2064,2414.9,2410.7,19.739]
[1750951985666,0.55,2415.3,2413.6,10.342]
[1750951985877,0.2064,2414.5,2414.0,0.2064]
[1750951986193,0.55,2415.5,2413.7,0.2064]
[1750951986194,0.2064,2414.1,2413.7,0.2064]
[1750951986572,0.7714,2414.4,2413.2,4.14376268]
[1750951986771,0.7714,2414.4,2413.6,0.2064]
[1750951986772,0.2064,2414.0,2413.6,0.2064]
[1750951987270,0.7714,2414.4,2413.3,10.908]
[1750951987675,0.7714,2414.4,2414.1,4.34868289]
[1750951987876,0.7714,2414.4,2414.1,0.2064]
[1750951988071,0.7714,2414.4,2413.3,10.0]
[1750951988272,0.7714,2414.4,2413.8,4.14271848]
[1750951988566,0.2064,2414.3,2414.2,4.14215889]
[1750951988761,0.7714,2415.4,2414.7,4.14126306]
[1750951989070,0.7714,2415.4,2414.6,10.345]
[1750951989271,4.13745836,2417.0,2415.3,4.34667111]
[1750951989472,0.7714,2416.0,2415.3,0.2064]
[1750951989672,0.7714,2416.0,2414.8,13.157257]
[1750951989898,10.345,2417.6,2415.9,4.13924417]
[1750951989899,1.04090128,2416.5,2415.9,4.13924417]
[1750951990065,0.5,2415.0,2412.1,10.0]
[1750951990265,10.0,2415.4,2412.2,21.850067]
[1750951990467,10.0,2415.0,2412.4,40.0]
[1750951990761,10.0,2414.5,2412.4,2.5]
[1750951990990,0.7772,2414.4,2412.7,4.14463159]
[1750951991200,0.7772,2414.4,2412.4,2.5]
[1750951991201,4.91914029,2414.4,2412.8,10.345]
[1750951991359,0.7772,2414.4,2412.8,10.345]
[1750951991564,0.7772,2414.0,2412.3,0.797]
[1750951991769,0.7772,2414.0,2412.6,1.242249]
[1750951991971,0.8186,2413.6,2411.5,30.0]
[1750951992166,0.8186,2413.4,2411.7,2.502662]
[1750951992369,0.8416,2412.8,2411.5,10.345]
[1750951992690,4.14493035,2412.6,2411.5,10.345]
[1750951992995,0.8416,2412.8,2411.5,10.345]
[1750951993185,11.08416,2412.7,2411.5,10.345]
[1750951993495,1.08416,2412.7,2411.5,10.345]
[1750951993665,0.8416,2412.7,2411.5,10.345]
[1750951993864,10.0,2412.5,2411.5,10.345]
[1750951994063,10.0,2412.5,2410.2,5.11786785]
[1750951994064,0.8416,2412.3,2410.6,10.349]
[1750951994266,10.0,2412.1,2410.6,10.349]
[1750951994495,1.0,2412.0,2410.7,3.417854]
[1750951994696,0.8157,2412.8,2411.3,4.14714054]
[1750951994897,0.8157,2413.3,2412.2,4.14547542]
[1750951995195,0.8157,2413.3,2412.3,10.349]
[1750951996004,0.8157,2413.3,2412.4,12.83651654]
[1750951996177,0.8157,2413.3,2412.4,4.14521135]
[1750951996392,0.8157,2413.3,2412.3,10.349]
[1750951996716,0.8157,2413.3,2412.4,4.14524288]
[1750951997014,0.8157,2413.3,2412.3,10.349]
[1750951997215,0.8157,2413.3,2412.5,14.1450321]
[1750951997522,0.8157,2413.3,2412.3,10.349]
[1750951997844,0.1118,2411.8,2410.2,0.96892393]
[1750951997991,0.1118,2411.1,2410.2,0.96892393]
[1750951998307,4.14794047,2410.9,2410.2,0.96892393]
[1750951998510,10.0,2410.9,2410.2,0.96892393]
[1750951998885,4.14794613,2410.9,2410.2,0.96892393]
[1750951999225,10.1118,2411.1,2410.2,0.96892393]
[1750951999393,11.12298,2411.1,2410.2,0.96892393]
[1750951999587,5.27050677,2411.1,2410.2,0.96892393]
[1750951999785,10.0,2410.9,2410.2,0.96892393]
[1750951999988,1.12298,2411.1,2410.2,0.96892393]
[1750952000184,1.0644,2410.8,2410.3,3.6915]
[1750952000518,0.8572,2411.3,2410.3,11.120248]
[1750952000719,0.8572,2411.3,2410.8,4.147979]
[1750952000916,0.8062,2411.8,2410.3,40.0]
[1750952001118,0.8254,2412.9,2410.6,30.0]
[1750952001294,0.8254,2412.9,2410.9,0.8695]
[1750952001509,0.8254,2412.9,2411.0,11.563]
[1750952001710,0.8254,2412.9,2411.3,4.14714054]
[1750952001920,0.8254,2412.9,2412.0,4.14586456]
[1750952002108,0.8254,2412.9,2411.6,4.14648913]
[1750952002309,0.8254,2412.9,2411.7,4.14628653]
[1750952002509,0.8254,2412.9,2411.6,10.0]
[1750952002840,0.8254,2412.9,2411.7,21.4506]
[1750952003131,0.8254,2412.9,2412.3,4.14533108]
[1750952003304,0.8873,2413.8,2411.9,0.8055]
[1750952003635,0.8873,2413.8,2412.7,4.14470676]
[1750952003934,0.8873,2413.8,2412.6,4.14477988]
[1750952004230,0.8873,2413.8,2412.9,4.14438017]
[1750952004436,0.8873,2413.8,2412.8,4.14449008]
[1750952004598,0.8873,2413.8,2412.5,10.357]
[1750952004801,0.8873,2413.8,2404.0,0.071]
[1750952004802,4.14800066,2410.8,2410.0,0.2149466]
[1750952005003,0.52660007,2410.8,2410.0,0.2149466]
[1750952005228,0.1118,2410.8,2410.0,0.2149466]
[1750952005429,0.55,2410.7,2410.0,0.2149466]
[1750952005931,14.69823019,2410.7,2410.0,0.2149466]
[1750952006098,26.41368753,2411.6,2410.2,0.07982393]
[1750952006099,14.69886113,2410.3,2410.2,0.07982393]
[1750952006505,10.55,2410.3,2410.2,0.07982393]
[1750952006704,15.75386113,2410.3,2410.2,0.07982393]
[1750952007531,10.357,2411.6,2410.2,0.07982393]
[1750952007733,0.55,2410.5,2410.2,0.07982393]
[1750952007934,0.55,2410.6,2410.2,0.07982393]
[1750952008233,0.55,2410.9,2410.2,0.07982393]
[1750952008531,1.41472659,2411.1,2410.2,0.07982393]
[1750952008730,0.55,2411.1,2410.2,0.07982393]
[1750952008932,0.55,2411.3,2410.2,0.07982393]
[1750952009133,4.69752697,2411.1,2410.2,0.07982393]
[1750952009321,10.55,2411.1,2410.2,0.07982393]
[1750952009524,1.46973242,2411.0,2410.2,0.07982393]
[1750952009730,0.55,2410.9,2410.2,0.07982393]
[1750952009912,11.835,2411.4,2410.2,0.07982393]
[1750952009913,10.0,2411.1,2410.2,0.07982393]
[1750952010436,0.26797307,2411.0,2410.2,0.07982393]
[1750952011034,0.55,2410.8,2410.2,0.07982393]
[1750952011221,0.26797307,2410.7,2410.2,0.07982393]
[1750952011609,0.26797307,2410.6,2410.2,0.07982393]
[1750952011804,0.26797307,2410.7,2410.2,0.07982393]
[1750952012009,12.40928749,2412.9,2410.5,4.14845228]
[1750952012010,0.26797307,2410.6,2410.5,4.14845228]
[1750952012317,0.26846076,2412.0,2410.3,4.14876048]
[1750952012533,0.2072,2410.6,2410.2,14.59175406]
[1750952012708,0.2072,2410.6,2410.2,10.44282393]
[1750952013035,14.697537,2411.1,2410.2,0.07982393]
[1750952013351,0.41466494,2411.5,2410.2,0.07982393]
[1750952013647,0.55,2411.3,2410.2,0.07982393]
[1750952014711,10.0,2411.4,2410.2,0.07982393]
[1750952014712,0.26938013,2411.2,2410.3,4.14878493]
[1750952015047,0.26938013,2411.1,2410.4,4.14868901]
[1750952015250,0.26938013,2411.0,2410.9,4.14782861]
[1750952015544,10.0,2412.7,2411.0,16.74601]
[1750952015732,4.14415521,2413.1,2411.6,4.14653133]
[1750952015913,0.68423824,2413.0,2411.2,10.0]
[1750952016243,4.14501143,2412.6,2411.1,4.14747341]
[1750952016445,34.358,2412.4,2408.9,0.8534]
[1750952016745,10.0,2411.6,2408.9,0.8534]
[1750952016930,0.55,2410.7,2409.4,4.15033166]
[1750952017118,10.0,2410.6,2409.5,4.15015286]
[1750952017318,12.2277,2410.6,2409.3,4.1505045]
[1750952017525,12.2277,2410.6,2409.2,10.364]
[1750952017720,0.55,2410.5,2408.9,0.8534]
[1750952018031,0.55,2410.5,2409.0,4.15104191]
[1750952018032,0.55,2410.3,2409.0,4.15104191]
[1750952018234,0.81975765,2410.3,2409.0,10.0]
[1750952018541,10.0,2410.4,2408.9,0.8534]
[1750952018754,0.55,2410.5,2409.4,4.15027838]
[1750952018951,10.55,2410.5,2409.4,4.15039851]
[1750952019121,0.55,2410.5,2409.3,4.15048115]
[1750952019448,11.693,2410.6,2409.3,4.15048115]
[1750952019746,13.8623,2410.6,2409.5,4.15020174]
[1750952019907,11.693,2410.6,2409.2,10.364]
[1750952020108,11.693,2410.6,2409.4,14.15033879]
[1750952020309,11.693,2410.6,2409.4,4.15033879]
[1750952020815,11.693,2410.6,2409.5,4.15023804]
[1750952021018,11.65,2410.8,2409.4,4.15034005]
[1750952021376,0.55,2410.7,2409.4,4.15034005]
[1750952021552,0.27026604,2410.6,2409.5,10.0]
[1750952021842,0.27026604,2410.6,2409.2,10.364]
[1750952021843,0.27026604,2410.5,2409.3,10.0]
[1750952022046,0.27026604,2410.4,2409.8,4.14961855]
[1750952022244,0.27026604,2410.3,2409.7,4.14984753]
[1750952022558,0.27026604,2410.3,2409.6,4.14994861]
[1750952022918,0.27026604,2410.3,2409.4,4.35746848]
[1750952023113,0.27026604,2410.3,2409.6,4.15000378]
[1750952023556,11.611,2410.8,2409.6,4.15000378]
[1750952023817,12.85115836,2410.7,2409.6,4.15000378]
[1750952024016,0.27036315,2410.6,2409.6,4.15000378]
[1750952024266,0.55,2410.6,2409.4,0.2072]
[1750952024458,0.55,2410.8,2409.7,4.14987164]
[1750952024621,0.55,2411.0,2409.7,4.14987164]
[1750952024622,11.77036465,2410.7,2409.7,4.14985915]
[1750952024955,0.55,2410.6,2409.4,4.15031545]
[1750952025119,0.55,2410.6,2409.4,4.15026431]
[1750952025315,0.27032371,2410.5,2409.5,4.15018659]
[1750952025620,0.55,2410.8,2409.6,4.14994731]
[1750952025815,4.16648807,2411.1,2409.7,4.14984937]
[1750952025816,11.468,2410.6,2409.7,4.14984937]
[1750952026062,0.27023942,2410.5,2409.9,4.14945358]
[1750952026269,0.0189,2411.1,2409.8,4.14965369]
[1750952026270,0.27023942,2410.4,2409.8,4.14965369]
[1750952026463,0.27023942,2410.3,2409.8,4.14965369]
[1750952026659,0.27023942,2410.3,2409.9,4.14953329]
[1750952026959,0.27023942,2410.3,2409.8,4.14964441]
[1750952027469,0.27023942,2410.3,2409.7,4.14979092]
[1750952027769,0.27023942,2410.3,2409.6,4.15001299]
[1750952027770,0.27023942,2410.3,2409.8,4.14959883]
[1750952028060,0.27023942,2410.3,2409.7,4.14985036]
[1750952028223,0.27023942,2410.3,2409.8,4.14971781]
[1750952028637,0.27023942,2410.3,2409.4,0.2072]
[1750952028967,0.27023942,2410.3,2409.4,4.1503325]
[1750952029135,0.27023942,2410.3,2409.2,10.364]
[1750952029338,0.27023942,2410.3,2409.6,4.1500386]
[1750952029552,0.27023942,2410.3,2409.8,4.14964176]
[1750952029753,0.27023942,2410.3,2409.7,4.14981744]
[1750952029925,0.27023942,2410.3,2409.4,4.1503237]
[1750952030120,11.60723942,2410.3,2409.4,4.15033816]
[1750952030347,11.60723942,2410.3,2409.5,4.15010852]
[1750952030553,0.27023942,2410.3,2409.5,4.15010852]
[1750952030757,0.27023942,2410.3,2409.2,10.364]
[1750952030957,0.27023942,2410.3,2409.4,4.15034701]
[1750952031156,0.27023942,2410.3,2409.4,4.15035161]
[1750952031370,0.27023942,2410.3,2409.2,10.364]
[1750952031542,0.27023942,2410.3,2409.6,4.15004813]
[1750952031939,0.27023942,2410.3,2409.2,10.364]
[1750952032247,0.27023942,2410.3,2409.2,14.51466905]
[1750952032569,0.27023942,2410.3,2409.4,4.15038168]
[1750952032758,11.54923942,2410.3,2409.4,4.15038168]
[1750952032961,11.54923942,2410.3,2409.3,4.15055237]
[1750952033135,0.27023942,2410.3,2409.4,4.15039691]
[1750952033337,11.54923942,2410.3,2409.2,10.364]
[1750952033570,11.52223942,2410.3,2409.4,4.15040671]
[1750952033786,0.82023942,2410.3,2409.2,10.364]
[1750952034076,10.83913942,2410.3,2408.9,0.8534]
[1750952034279,10.0,2410.2,2408.9,5.00464064]
[1750952034445,0.27023942,2410.1,2409.1,4.15091643]
[1750952034631,0.27023942,2410.1,2409.2,4.15074696]
[1750952034837,11.48423942,2410.1,2409.1,4.15091536]
[1750952035166,22.03423942,2410.1,2408.9,0.8534]
[1750952035331,24.23955336,2410.1,2409.1,4.15091407]
[1750952035534,0.27023942,2410.1,2408.9,5.00465616]
[1750952035844,0.27023942,2410.1,2409.4,4.15040671]
[1750952036175,0.27023942,2410.1,2408.9,0.8534]
[1750952036370,0.27023942,2410.1,2409.6,0.8355]
[1750952037045,0.27023942,2410.1,2409.8,4.14960487]
[1750952037364,0.27023942,2410.1,2409.7,4.14987133]
[1750952037575,0.27023942,2410.1,2409.6,4.9855646]
[1750952037775,0.27023942,2410.1,2409.6,0.8355]
[1750952038092,0.82023942,2410.1,2409.4,10.368]
[1750952038228,0.27023942,2410.1,2409.4,10.368]
[1750952039037,0.27023942,2410.1,2409.7,4.14974832]
[1750952039384,0.27023942,2410.1,2409.4,10.368]
[1750952040655,0.27023942,2410.1,2409.9,10.0]
[1750952040858,0.27023942,2410.1,2410.0,4.36432419]
[1750952041032,15.279637,2411.9,2410.0,4.36432419]
[1750952041033,0.0189,2412.1,2410.2,22.37244]
[1750952041233,4.14654658,2411.7,2410.1,4.98319397]
[1750952041463,4.14654658,2411.7,2410.1,0.834]
[1750952041464,10.0,2411.6,2410.1,0.834]
[1750952041631,10.0,2411.7,2410.2,4.14899557]
[1750952041832,10.0,2411.7,2410.2,4.14903327]
[1750952042165,11.057,2411.6,2410.3,4.14886113]
[1750952042370,0.55,2411.4,2410.4,4.14866974]
[1750952042570,10.0,2411.5,2410.1,0.834]
[1750952042774,10.0,2412.9,2410.3,0.8798]
[1750952042975,4.14514635,2412.5,2411.1,4.14748161]
[1750952043178,11.13339746,2412.9,2410.7,16.341]
[1750952043348,0.0189,2412.8,2410.9,44.14782861]
[1750952043669,0.0189,2412.8,2411.7,0.8798]
[1750952043992,0.2072,2411.9,2411.7,0.8798]
[1750952044151,0.2072,2411.7,2411.3,0.8754]
[1750952044349,11.15229746,2412.8,2411.3,0.8754]
[1750952044350,0.2072,2411.5,2411.3,0.8754]
[1750952044556,0.0189,2412.8,2410.1,11.68339746]
[1750952044557,0.0189,2411.8,2410.2,30.0]
[1750952044787,0.0189,2412.4,2411.3,0.8754]
[1750952044942,0.2072,2411.8,2411.5,4.25978]
[1750952045142,0.0189,2412.9,2411.7,10.0]
[1750952045455,0.2072,2412.2,2411.7,0.2072]
[1750952045648,0.2072,2412.2,2411.9,4.14601487]
[1750952045853,0.2072,2412.2,2411.8,4.14622334]
[1750952046048,0.2072,2412.2,2411.9,4.14609909]
[1750952046246,0.2072,2412.2,2411.8,4.14622009]
[1750952046483,10.0,2413.0,2412.1,4.14560427]
[1750952046683,0.2072,2412.2,2411.8,0.8104]
[1750952046979,0.2072,2412.4,2412.1,4.1457651]
[1750952047154,0.2072,2412.7,2412.4,4.14509871]
[1750952047356,0.2072,2412.7,2412.5,4.14498525]
[1750952047574,0.2072,2412.7,2412.1,4.35291566]
[1750952047748,0.2072,2412.7,2412.5,4.14507379]
[1750952047951,0.2072,2412.7,2412.2,0.3841593]
[1750952047952,0.2072,2412.7,2412.2,4.14559323]
[1750952048168,11.026,2414.0,2412.4,0.8467]
[1750952048378,0.0189,2414.2,2412.6,14.739]
[1750952048593,0.4141535,2414.5,2413.5,0.8467]
[1750952048792,0.0189,2415.2,2413.6,0.38415119]
[1750952048966,0.0189,2415.2,2413.7,0.38415119]
[1750952049155,4.14125671,2414.8,2413.8,0.38415119]
[1750952049371,4.14093191,2415.0,2413.5,4.99004514]
[1750952049560,11.87815917,2414.9,2413.6,0.3824521]
[1750952049878,0.82815917,2414.9,2413.7,4.5254417]
[1750952050195,4.15939154,2415.2,2413.8,0.3824521]
[1750952050196,0.0189,2415.2,2413.8,0.3824521]
[1750952050380,10.0189,2415.2,2413.9,0.3824521]
[1750952050582,0.0189,2415.2,2413.6,14.14312573]
[1750952050748,0.0189,2415.2,2413.5,0.8467]
[1750952050749,4.14091828,2415.0,2413.7,0.38163797]
[1750952050950,10.0,2414.9,2413.8,0.38166598]
[1750952051151,0.55,2415.1,2413.5,4.99005197]
[1750952051357,0.20877247,2415.0,2413.6,0.38114423]
[1750952051563,0.20877247,2415.0,2413.7,0.38114423]
[1750952051765,0.20877247,2415.0,2413.8,0.38114423]
[1750952051972,4.34961431,2415.0,2413.9,0.38114423]
[1750952052262,1.53516143,2414.9,2413.6,14.1430768]
[1750952052584,10.55,2414.7,2413.7,0.38046643]
[1750952052785,10.0,2414.3,2413.1,0.8489]
[1750952052965,10.0,2415.1,2413.3,24.769276]
[1750952053286,10.0,2415.1,2413.4,4.52411025]
[1750952053287,14.14101597,2414.9,2413.4,4.52411025]
[1750952053456,1.86199573,2414.8,2413.5,0.38058248]
[1750952053780,1.86199573,2414.8,2413.2,4.1437061]
[1750952053781,11.86199573,2414.8,2413.6,4.52369277]
[1750952053983,11.86199573,2414.8,2413.7,0.38058248]
[1750952054182,1.86199573,2414.8,2413.9,0.8489]
[1750952054386,10.0,2414.8,2413.9,0.8489]
[1750952055989,2.3,2414.6,2413.9,0.8489]
[1750952056290,2.3,2414.6,2413.9,4.99149118]
[1750952056491,2.3,2414.6,2414.0,4.14250207]
[1750952056694,0.20877247,2415.0,2414.0,4.14250207]
[1750952056880,4.16077082,2415.6,2414.1,0.37903993]
[1750952057062,0.0209,2415.6,2413.9,11.2049]
[1750952057257,10.843,2415.5,2414.0,4.14247694]
[1750952057469,10.0,2415.4,2414.4,4.14180979]
[1750952057782,10.843,2415.5,2414.4,4.14180979]
[1750952057980,1.08639,2415.4,2414.4,4.14180979]
[1750952058291,10.816,2415.7,2414.6,4.14137873]
[1750952058491,0.2064,2415.1,2414.6,0.2064]
[1750952059593,0.0209,2416.2,2414.5,0.8077]
[1750952059799,0.0209,2416.2,2414.9,4.14091698]
[1750952060094,0.0209,2416.2,2414.5,0.8077]
[1750952060391,0.0209,2416.2,2414.9,4.14087314]
[1750952060591,0.0209,2416.2,2414.8,4.14104043]
[1750952060791,0.0209,2416.2,2414.9,4.14094449]
[1750952060999,0.0209,2416.2,2415.0,4.14075556]
[1750952061169,0.0209,2416.2,2415.1,4.14059509]
[1750952061366,12.09979,2416.2,2414.6,22.645587]
[1750952061566,12.09979,2416.2,2414.8,10.0]
[1750952061790,12.09979,2416.2,2414.9,4.14092871]
[1750952061991,2.09979,2416.2,2414.9,4.14092871]
[1750952062193,2.09979,2416.2,2414.5,4.94932182]
[1750952062398,2.09979,2416.2,2415.1,4.14052501]
[1750952062900,0.55,2415.8,2414.5,4.94930407]
[1750952063070,2.3,2416.0,2414.7,4.14127394]
[1750952063277,2.3,2416.0,2414.5,0.8077]
[1750952063278,12.3,2416.0,2414.8,4.1411097]
[1750952063603,0.0209,2416.2,2414.7,20.0383]
[1750952063760,0.0209,2416.2,2414.6,40.0]
[1750952064100,0.0209,2416.2,2414.5,0.8077]
[1750952064306,0.0209,2416.2,2414.5,4.94930947]
[1750952064596,0.0209,2416.2,2415.2,4.14043393]
[1750952064796,0.0209,2416.2,2414.7,30.0]
[1750952065017,0.0209,2416.8,2415.0,0.8268]
[1750952065175,0.0209,2416.8,2415.2,4.14044385]
[1750952065377,0.0209,2416.8,2415.7,4.1394979]
[1750952065771,0.0209,2416.8,2415.1,10.349]
[1750952065970,4.1587089,2416.8,2415.5,10.0]
[1750952066273,0.55,2416.7,2415.2,4.14029712]
[1750952066476,0.55,2416.7,2415.1,10.349]
[1750952066687,1.05709,2416.6,2415.5,4.13991857]
[1750952066998,1.05709,2416.6,2415.3,0.37830159]
[1750952066999,1.05709,2416.6,2415.7,4.13958686]
[1750952067201,10.0,2417.1,2415.8,4.13930122]
[1750952067495,0.55,2417.0,2415.7,4.13947992]
[1750952067674,11.56365009,2416.9,2415.6,0.8879]
[1750952067865,0.55,2416.7,2415.6,0.8879]
[1750952068067,0.0209,2416.6,2414.6,0.8879]
[1750952068267,0.94919841,2416.6,2415.6,0.8879]
[1750952068600,10.0209,2417.0,2415.7,4.51843187]
[1750952068601,0.0209,2417.0,2415.7,4.51843187]
[1750952068899,0.0209,2417.0,2415.9,4.13924417]
[1750952069067,0.0209,2417.0,2415.6,0.8879]
[1750952069268,10.575,2417.4,2416.4,4.13824364]
[1750952069505,2.35938386,2418.0,2416.4,4.13824364]
[1750952069506,0.2064,2416.8,2416.4,0.2064]
[1750952069668,0.2064,2416.8,2416.7,4.13787396]
[1750952070385,0.2064,2417.0,2416.5,0.2064]
[1750952070706,0.95030627,2417.8,2416.6,0.37933874]
[1750952070882,0.2064,2417.2,2416.7,0.2064]
[1750952071081,0.2064,2417.2,2416.7,4.34427175]
[1750952071276,0.2064,2417.2,2416.7,4.34426329]
[1750952071480,0.95141712,2418.0,2416.9,4.1373786]
[1750952071666,0.2064,2417.4,2417.0,4.13735594]
[1750952071871,0.2064,2417.6,2417.2,0.2064]
[1750952072169,2.38028386,2418.6,2417.0,4.13732942]
[1750952072170,0.2064,2417.4,2417.0,4.13732942]
[1750952072374,0.2064,2417.4,2416.9,0.2064]
[1750952072375,0.2064,2417.4,2417.1,4.1370572]
[1750952072578,0.95141712,2418.3,2417.3,4.1367516]
[1750952072785,0.2064,2417.6,2417.3,4.1367516]
[1750952072986,0.2064,2417.6,2417.1,4.34356714]
[1750952073207,0.2064,2417.6,2417.1,0.2064]
[1750952073408,0.95141712,2418.1,2416.9,4.13743214]
[1750952073710,0.95141712,2418.0,2416.8,5.1184]
[1750952073903,0.2064,2417.2,2416.8,5.1184]
[1750952074117,0.2064,2417.2,2416.8,4.29]
[1750952074483,0.2064,2417.2,2417.0,4.13734731]
[1750952074683,0.0209,2417.7,2416.8,4.29]
[1750952074905,0.2064,2417.3,2417.0,4.13736036]
[1750952075098,0.0209,2417.7,2416.9,4.289]
[1750952075274,0.2064,2417.2,2416.9,4.289]
[1750952075474,0.95141712,2417.6,2417.0,4.13735189]
[1750952075674,12.35938386,2418.2,2417.3,4.13684689]
[1750952075675,0.2064,2417.4,2417.3,4.13684689]
[1750952075876,0.2064,2417.7,2417.2,0.2064]
[1750952076076,0.2064,2417.7,2417.2,4.34337001]
[1750952076314,0.2064,2417.7,2417.3,4.13675971]
[1750952076677,0.2064,2417.7,2417.2,0.2064]
[1750952076874,0.0209,2418.2,2416.7,10.344]
[1750952076875,0.95141712,2417.8,2416.7,10.344]
[1750952077074,0.0209,2418.2,2416.8,4.289]
[1750952077075,0.2064,2417.0,2416.8,4.289]
[1750952078311,0.2064,2417.0,2416.7,10.344]
[1750952078312,0.0209,2417.3,2416.7,10.344]
[1750952079279,0.2064,2416.7,2416.3,4.13855149]
[1750952079582,0.2064,2416.6,2416.1,4.34522467]
[1750952079816,0.95226843,2417.0,2416.0,4.9838741]
[1750952080121,0.2064,2416.4,2416.0,5.1902741]
[1750952080323,0.95227096,2417.0,2416.0,0.8449]
[1750952080512,0.2064,2416.8,2416.4,4.1382918]
[1750952081006,0.2064,2416.8,2416.5,4.13820346]
[1750952081182,0.2064,2416.8,2416.3,0.2064]
[1750952081594,0.0209,2417.3,2416.7,4.13787396]
[1750952081794,1.15915492,2417.2,2416.7,0.2064]
[1750952081989,0.2064,2417.2,2416.8,4.181]
[1750952082277,0.2064,2417.2,2417.1,4.13718919]
[1750952082507,0.2064,2417.4,2417.3,4.13684689]
[1750952082681,1.1591492,2417.4,2417.3,4.13684689]
[1750952082894,1.1591492,2417.4,2416.8,0.8134]
[1750952083225,0.9527492,2417.3,2417.1,4.13718055]
[1750952083380,0.0209,2417.8,2417.0,4.181]
[1750952083579,0.95262408,2417.7,2417.0,4.181]
[1750952083816,2.35938386,2417.9,2417.0,4.181]
[1750952083817,0.95262408,2417.6,2417.5,4.13650465]
[1750952083981,0.95262408,2417.6,2417.3,4.181]
[1750952084181,0.95262408,2417.5,2417.3,8.31776079]
[1750952084407,0.95262408,2417.4,2417.3,8.31776079]
[1750952085214,0.95262408,2417.9,2417.6,4.13629569]
[1750952085383,0.95262408,2417.8,2417.6,4.13629569]
[1750952085584,2.35938386,2418.5,2417.6,4.13627933]
[1750952085885,0.95349183,2418.4,2417.7,4.13604212]
[1750952086082,0.95349183,2418.3,2417.7,4.13615351]
[1750952086398,0.95349183,2418.2,2417.6,4.078]
[1750952086608,0.95349183,2418.1,2417.6,4.078]
[1750952086810,2.35938386,2418.6,2418.1,4.13532238]
[1750952087026,2.35938386,2418.6,2417.7,17.00895246]
[1750952087027,0.95385671,2418.5,2418.2,4.1352993]
[1750952087196,0.95385671,2418.4,2418.2,4.1352993]
[1750952087392,0.95385671,2418.3,2418.2,4.1352993]
[1750952087596,0.95385671,2418.3,2417.7,10.338]
[1750952087923,0.0213,2418.7,2417.9,4.13582033]
[1750952087924,0.95385671,2418.2,2417.9,4.13582033]
[1750952088224,2.35938386,2418.8,2418.3,4.13505038]
[1750952088397,0.95282533,2418.7,2417.8,4.078]
[1750952088605,0.95282533,2418.6,2418.4,4.13484134]
[1750952088800,0.95282533,2418.5,2418.4,4.13484134]
[1750952088990,0.95316034,2418.5,2418.4,4.078]
[1750952089195,0.95316034,2418.5,2417.9,0.8519]
[1750952089398,0.95316034,2418.5,2417.7,10.338]
[1750952089399,0.95316034,2418.4,2417.7,18.55104331]
[1750952089613,0.95316034,2418.3,2417.7,14.415]
[1750952089802,0.95316034,2418.2,2417.7,18.5510733]
[1750952090003,0.0213,2418.6,2417.7,14.415]
[1750952090326,0.95294272,2418.5,2417.7,18.5510723]
[1750952090528,0.95294272,2418.4,2417.1,4.13709239]
[1750952090823,0.95294272,2418.3,2417.1,4.13712322]
[1750952091127,0.95294272,2418.2,2417.1,4.13702536]
[1750952091437,14.13479553,2418.5,2417.4,4.13659023]
[1750952091438,0.95294272,2418.1,2417.4,4.13659023]
[1750952091649,0.95294272,2418.0,2416.8,30.0]
[1750952091813,2.35938386,2418.5,2417.6,4.13616631]
[1750952092015,0.5713,2418.0,2416.4,0.8519]
[1750952092328,0.95326997,2417.9,2416.9,4.13744252]
[1750952092526,0.95326997,2417.8,2416.6,4.13795685]
[1750952092734,0.95326997,2417.7,2416.5,4.1380704]
[1750952092902,0.2064,2417.1,2416.6,4.34443443]
[1750952093103,0.2064,2417.1,2416.6,0.2064]
[1750952093413,19.79797049,2417.7,2416.3,4.077]
[1750952093733,0.2064,2416.8,2416.4,4.34465318]
[1750952094142,0.2064,2416.8,2416.4,0.2064]
[1750952094445,0.2064,2416.7,2416.4,3.972]
[1750952094652,0.2064,2416.7,2416.3,0.2064]
[1750952094834,0.0213,2416.9,2416.0,3.972]
[1750952094835,0.2064,2416.3,2416.0,3.972]
[1750952095038,0.2064,2416.2,2416.0,8.11098543]
[1750952095260,0.0213,2416.9,2416.0,3.972]
[1750952095409,0.2064,2416.4,2416.0,8.31740026]